Cogmind - Beta 14 @@@ ROGUE MODE // 2024.11.20 @ 02:02:15 Player: akira Result: Self-destructed Performance ------------- Evolutions (2) 1000 Regions Visited (4) 800 Robots Destroyed (42) 210 Value Destroyed (1172) 1172 Prototype IDs (2) 40 Alien Tech Used (0) 0 Bonus (56) 56 TOTAL SCORE: 3278 Bonus ------- Follower Combat Kills 56 Cogmind --------- Core Integrity 224/550 Matter 60/300 Energy 160/160 System Corruption 0% Temperature Cool (0) Movement Core (200) Ox3 Location -8/Materials Parts ------- > --- POWER (2) -------- Light Nuclear Core > --- PROPULSION (4) --- (None) > --- UTILITY (3) ------ Improved Power Shielding > --- WEAPON (2) ------- Assault Cannon > --- INVENTORY (5) ---- Light Nuclear Core Light Treads Airjet Light Assault Rifle Peak State ------------ > --- POWER ------------ Light Nuclear Core Light Nuclear Core > --- PROPULSION ------- Light Treads > --- UTILITY ---------- Improved Power Shielding Hardened Light Armor Plating > --- WEAPON ----------- Assault Cannon Assault Cannon > --- INVENTORY -------- Airjet Light Assault Rifle [Rating: 18] Favorites ----------- Power Ion Engine Engine Ion Engine Power Core Light Nuclear Core Propulsion Light Treads Treads Light Treads Leg Aluminum Leg Wheel Compact Wheel Utility Small Storage Unit Device Seismic Detector Storage Small Storage Unit Hackware Hacking Suite Protection Core Shielding Weapon Light Assault Rifle Ballistic Gun Light Assault Rifle Ballistic Cannon Flak Cannon Build | -11 -10 -10 -9 -8 ------- Run | Yrd Mat Min Mat Mat Slots Evolved 4 | . . . 2 2 Power 1 | . . . . 1 Propulsion 2 | . . . 1 1 Utility 1 | . . . 1 . Weapon . | . . . . . Parts Attached 41 | 6 1 1 15 18 Power 7 | 1 . . 3 3 Engine 5 | 1 . . 3 1 Core 2 | . . . . 2 Reactor . | . . . . . Propulsion 10 | 2 . . 5 3 Treads 3 | 2 . . . 1 Leg 5 | . . . 5 . Wheel 2 | . . . . 2 Hover . | . . . . . Flight . | . . . . . Utility 10 | 1 1 1 2 5 Device 1 | . 1 . . . Storage 1 | 1 . . . . Processor . | . . . . . Hackware 1 | . . . . 1 Protection 7 | . . 1 2 4 Artifact . | . . . . . Weapon 14 | 2 . . 5 7 Energy Gun . | . . . . . Energy Cannon . | . . . . . Ballistic Gun 9 | 2 . . 3 4 Ballistic Cannon 5 | . . . 2 3 Launcher . | . . . . . Special Weapon . | . . . . . Impact Weapon . | . . . . . Slashing Weapon . | . . . . . Piercing Weapon . | . . . . . Special Melee Weapon . | . . . . . Unidentified Prototypes . | . . . . . Parts Lost 17 | . . . 5 12 Power 3 | . . . 1 2 Propulsion 6 | . . . 3 3 Utility 4 | . . . 1 3 Weapon 4 | . . . . 4 Highest Loss Streak 5 | . . . 3 5 To Critical Strikes . | . . . . . Average Slot Usage (%) 82 | . 98 100 88 56 Engine 10 | . 14 14 10 5 Core 1 | . . . . 6 Treads 12 | . 28 28 3 4 Leg 9 | . . . 24 5 Wheel 1 | . . . . 4 Device 1 | . 12 . . . Storage 9 | . 14 14 11 3 Protection 11 | . . 14 18 8 Ballistic Gun 15 | . 28 28 8 9 Ballistic Cannon 6 | . . . 12 7 Peak Build Rating 18 | 6 7 7 14 18 Average Rating 9 | 4 6 7 11 12 On Entrance 6 | . 6 7 7 11 Naked Turns . | . . . . . Heaviest Build 27 | 13 14 14 26 27 Greatest Support 40 | 40 40 40 40 32 Greatest Overweight (x) 7 | 1 . . 2 7 Average Overweight (x) . | . . . . . Largest Inventory Capacity 8 | 8 8 8 8 8 Average Capacity 7 | 7 8 8 8 6 Most Carried 8 | 6 8 8 8 8 Average Carried 6 | 3 6 7 7 4 Final Capacity 8 | 8 8 8 8 5 Final Carried 8 | 5 7 8 7 4 Class Distribution -------------------- 85% | Mutant 14% | Scavenger-Mutant Dominant Class ---------------- Mutant | -10/Materials Mutant | -10/Mines Mutant | -9/Materials Mutant | -8/Materials Resources | -11 -10 -10 -9 -8 ----------- Run | Yrd Mat Min Mat Mat Matter Collected 1142 | 234 48 34 404 422 Remotely . | . . . . . Salvage Created 1045 | . 35 93 515 402 Parts 80 | . 4 10 44 22 Haulers Intercepted . | . . . . . Recyclers Shooed 3 | . . . 1 2 Parts Field Recycled . | . . . . . Retrieved Matter . | . . . . . Parts Self-Destructed . | . . . . . Prevented . | . . . . . Kills | -11 -10 -10 -9 -8 ------- Run | Yrd Mat Min Mat Mat Combat Hostiles Destroyed 38 | . 1 4 18 15 Guns 16 | . 1 4 6 5 Cannons 22 | . . . 12 10 Classes Destroyed 6 | . 1 1 2 2 Builder 1 | . . . . 1 Recycler 1 | . . . . 1 Watcher 2 | . . . 2 . Swarmer 13 | . . 3 4 6 Grunt 20 | . 1 1 12 6 Sentry 5 | . . . 2 3 Best Kill Streak 7 | . 1 3 7 5 Combat Bots Only 6 | . 1 3 6 4 Max Kills in Single Turn 2 | . 1 2 1 2 Gunslinging 1 | . . 1 . . Exploded . | . . . . . Melee . | . . . . . Uniques/NPCs Destroyed . | . . . . . Combat | -11 -10 -10 -9 -8 -------- Run | Yrd Mat Min Mat Mat Hostile Shots Fired 363 | . 6 12 145 200 Missed 90 | . . 4 32 54 Damage Taken 3126 | . 58 73 1158 1837 Core 503 | . 20 . 157 326 Absorbed by Shields . | . . . . . Redirected to Shielding 33 | . . . 33 . Core Remaining (%) 84 | 100 . 92 60 . Volleys Fired 127 | . 3 7 54 63 Largest 2 | . 2 2 2 2 Hottest 88 | . 40 40 88 88 Shots Fired 233 | . 6 14 101 112 Gun 143 | . 6 14 52 71 Cannon 90 | . . . 49 41 Launcher . | . . . . . Special . | . . . . . Kinetic 233 | . 6 14 101 112 Thermal . | . . . . . Explosive . | . . . . . Electromagnetic . | . . . . . Robot Hit Streak 12 | . 4 3 7 12 Robot Miss Streak 11 | . 2 1 11 10 Penetration Max . | . . . . . Secondary Targets 4 | . . 3 1 . Max Gunslinging Chain 1 | . . 1 1 . Shots Hit Robots 154 | . 4 9 66 75 Core Hits 116 | . 2 5 52 57 Critical Kills . | . . . . . Critical Parts Destroyed 1 | . . . 1 . Critical Strikes 1 | . . . 1 . Destroy 1 | . . . 1 . Melee Attacks . | . . . . . Impact . | . . . . . Slashing . | . . . . . Piercing . | . . . . . Sneak Attacks . | . . . . . Combat Hostiles . | . . . . . Follow-up Attacks . | . . . . . Damage Inflicted 2417 | . 38 103 963 1313 Guns 984 | . 38 103 283 560 Cannons 1433 | . . . 680 753 Explosions . | . . . . . Melee . | . . . . . Ramming . | . . . . . Kinetic 2417 | . 38 103 963 1313 Thermal . | . . . . . Explosive . | . . . . . Electromagnetic . | . . . . . Impact . | . . . . . Slashing . | . . . . . Piercing . | . . . . . Highest Corruption . | . . . . . Average Corruption . | . . . . . Corruption Purged . | . . . . . Corruption Blocked . | . . . . . Overload Shots . | . . . . . Overflow Damage . | . . . . . Projectiles . | . . . . . Explosions . | . . . . . Melee . | . . . . . Knockbacks 52 | . . . 26 26 Impact . | . . . . . Kinetic 40 | . . . 18 22 Secondary 12 | . . . 8 4 Self-Inflicted Damage . | . . . . . Shots . | . . . . . Rammed . | . . . . . Targets Rammed . | . . . . . Kicked . | . . . . . Crushed . | . . . . . Highest Temperature 526 | . 6 12 526 111 Average Temperature 106 | . 6 8 206 28 Received Heat Transfer 1173 | . 27 18 453 675 Effects 8 | . . . 8 . Shutdowns 1 | . . . 1 . Energy Bleed 1 | . . . 1 . Matter Decay 3 | . . . 3 . Short Circuit 2 | . . . 2 . Damage (minor) 1 | . . . 1 . Siege Activations . | . . . . . Robots Corrupted . | . . . . . Combat Hostiles . | . . . . . Parts Fried . | . . . . . Impact Corruptions . | . . . . . Robots Melted . | . . . . . Combat Hostiles . | . . . . . Parts Melted . | . . . . . Heat Transferred . | . . . . . Parts Sabotaged . | . . . . . Parts Stolen . | . . . . . Parts Stripped . | . . . . . Power Chain Reactions . | . . . . . Alert | -11 -10 -10 -9 -8 ------- Run | Yrd Mat Min Mat Mat Peak Influence 397 | . 20 133 309 397 Initial 130 | . . 7 . 130 Average 132 | . 8 46 177 219 Maximum Alert Level 1 | . . . 1 1 Low Security (%) 68 | 100 100 100 48 47 Level 1 31 | . . . 51 52 Level 2 . | . . . . . Level 3 . | . . . . . Level 4 . | . . . . . Level 5 . | . . . . . High Security . | . . . . . Max Security . | . . . . . Squads Dispatched 4 | . . . 3 1 Investigation 2 | . . . 2 . Extermination . | . . . . . Reinforcement 2 | . . . 1 1 Assault . | . . . . . Garrison . | . . . . . Intercept . | . . . . . Searches Triggered . | . . . . . Construction Impeded . | . . . . . Haulers Reinforced . | . . . . . Active Scanning Responses . | . . . . . Cargo Convoy Interrupts . | . . . . . Stealth | -11 -10 -10 -9 -8 --------- Run | Yrd Mat Min Mat Mat Distress Signals 2 | . . . . 2 Communications Jammed . | . . . . . Distress Signals . | . . . . . Times Spotted 60 | . 5 5 25 25 Peak Tracking Total 9 | . 5 3 9 7 Tactical Retreats 2 | . . . 1 1 Traps | -11 -10 -10 -9 -8 ------- Run | Yrd Mat Min Mat Mat Traps Triggered 4 | . . . 1 3 Indirectly . | . . . . . Trap Hack Attempts . | . . . . . Triggered . | . . . . . Disarmed . | . . . . . Reprogrammed . | . . . . . Reused . | . . . . . Traps Extracted . | . . . . . Installed . | . . . . . Triggered . | . . . . . Machines | -11 -10 -10 -9 -8 ---------- Run | Yrd Mat Min Mat Mat Machines Disabled . | . . . . . Max in Single Turn . | . . . . . Machines Repaired . | . . . . . Machines Dismantled . | . . . . . Machines Sabotaged . | . . . . . Overloaded Fab Kills . | . . . . . Hacking | -11 -10 -10 -9 -8 --------- Run | Yrd Mat Min Mat Mat Machines Accessed 3 | . . . 2 1 Terminals 3 | . . . 2 1 Fabricators . | . . . . . Repair Stations . | . . . . . Recycling Units . | . . . . . Scanalyzers . | . . . . . Garrison Access . | . . . . . Total Hacks 5 | . . . 4 1 Successful 2 | . . . 2 . Failed 3 | . . . 2 1 Catastrophic 1 | . . . 1 . Database Lockouts . | . . . . . Manual . | . . . . . Terminals 5 | . . . 4 1 Fabricators . | . . . . . Repair Stations . | . . . . . Recycling Units . | . . . . . Scanalyzers . | . . . . . Garrison Access . | . . . . . Terminal Hacks 2 | . . . 2 . Prototype ID Bank 1 | . . . 1 . Alert Level 1 | . . . 1 . Fabricator Hacks . | . . . . . Repair Station Hacks . | . . . . . Recycling Unit Hacks . | . . . . . Scanalyzer . | . . . . . Garrison Access Hacks . | . . . . . Unauthorized Hacks . | . . . . . Terminals . | . . . . . Fabricators . | . . . . . Repair Stations . | . . . . . Recycling Units . | . . . . . Scanalyzers . | . . . . . Garrison Access . | . . . . . Data Cores Recovered . | . . . . . Used . | . . . . . Hacking Detections 3 | . . . 2 1 Full Trace Events 1 | . . . 1 . Feedback Events . | . . . . . Feedback Blocked . | . . . . . Robot Schematics Acquired . | . . . . . Robots Built . | . . . . . Authchips . | . . . . . Time . | . . . . . Total Robot Build Rating . | . . . . . Part Schematics Acquired . | . . . . . Parts Built . | . . . . . Authchips . | . . . . . Time . | . . . . . Total Part Build Rating . | . . . . . Parts Repaired . | . . . . . Time . | . . . . . Parts Recycled . | . . . . . Recycled Matter . | . . . . . Retrieved Matter . | . . . . . Retrieved Components . | . . . . . Parts Scanalyzed . | . . . . . Part Schematics Acquired . | . . . . . Parts Damaged . | . . . . . Bothacking | -11 -10 -10 -9 -8 ------------ Run | Yrd Mat Min Mat Mat Used RIF Installer . | . . . . . Robots Hacked . | . . . . . Non-combat . | . . . . . Combat . | . . . . . Robot Hacks Applied . | . . . . . Relay Couplers Released . | . . . . . Fabnet Peak Effective % . | . . . . . Robots Rewired . | . . . . . Allies Hacked . | . . . . . Hacks Repelled . | . . . . . Allies | -11 -10 -10 -9 -8 -------- Run | Yrd Mat Min Mat Mat Total Allies 2 | . . 2 . . Largest Group 2 | . . 2 1 . Highest-Rated Group 57 | . . 57 31 . Highest-Rated Ally 31 | . . 31 31 . Total Orders . | . . . . . Ally Attacks 14 | . . 5 9 . Total Damage 128 | . . 42 86 . Kills 4 | . . 1 3 . Allies Corrupted . | . . . . . Allies Melted . | . . . . . Intel | -11 -10 -10 -9 -8 ------- Run | Yrd Mat Min Mat Mat Robot Analysis Total . | . . . . . Derelict Logs Recovered 1 | . . 1 . . Drone Launches . | . . . . . Drone Recoveries . | . . . . . Exploration | -11 -10 -10 -9 -8 ------------- Run | Yrd Mat Min Mat Mat Turns Passed 2511 | 127 335 510 767 772 Spaces Moved 1165 | 72 175 303 326 289 Core 31 | 23 . . . 8 Treads 712 | 49 175 303 37 148 Legs 388 | . . . 289 99 Wheels 34 | . . . . 34 Hover . | . . . . . Flight . | . . . . . Fastest Speed 50 | 50 160 160 120 100 Average Speed 159 | 126 160 160 141 188 Slowest Speed 400 | 160 160 160 260 400 Overloaded Moves . | . . . . . Propulsion Burnouts . | . . . . . Robots Hopped . | . . . . . Cave-ins Triggered . | . . . . . Exploration Rate (%) 32 | 5 35 59 38 24 Regions Visited 4 Branch Regions 1 Pre-discovered Areas 1 | . . 1 . . Known Exits Taken . | . . . . . Unknown Exits Taken 4 | 1 1 1 1 . Scrap Searched 2 | . . 2 . . Spaces Dug . | . . . . . Terrain Destroyed . | . . . . . Melee . | . . . . . Projectile . | . . . . . AOE . | . . . . . Terrain Rammed . | . . . . . Walls Destroyed . | . . . . . Machines Disabled . | . . . . . Actions | -11 -10 -10 -9 -8 --------- Run | Yrd Mat Min Mat Mat Total 1601 | 108 226 316 540 411 Wait 211 | 20 41 3 125 22 Move 1161 | 71 174 302 325 289 Hop . | . . . . . Pick Up 46 | 11 5 2 13 15 Fast Attach . | . . . . . Attach 30 | 6 1 . 7 16 Detach . | . . . . . Swap 11 | . . 1 8 2 Drop 15 | . 2 1 8 4 Fire 127 | . 3 7 54 63 Melee . | . . . . . Ram . | . . . . . Kick . | . . . . . Crush . | . . . . . Escape Stasis . | . . . . . Rewire . | . . . . . Trap . | . . . . . Miscellaneous . | . . . . . Route ------- -11/Scrapyard -10/Materials -10/Mines -9/Materials (discovered 2 exits: *Mat / [*Min]) -8/Materials History --------- Turn | Location | Event 5 | -11/Scrapyard | Discovered new exit (range 15) 128 | -11/Scrapyard | Entered Materials 311 | -10/Materials | Build established: Mutant 434 | -10/Materials | Discovered new exit (range 8) 463 | -10/Materials | Entered Mines 499 | -10/Mines | Learned location of Zion (-7) 510 | -10/Mines | Met a Derelict bent on vengeance 583 | -10/Mines | Discovered new exit (range 10) 973 | -10/Mines | Entered Materials 973 | -9/Materials | Accompanied by 1 ally 973 | -9/Materials | Evolved 2 slots: Propulsion x1, Utility x1 978 | -9/Materials | Led the pair of lost Derelicts to an unsafe place 1277 | -9/Materials | Discovered new exit (range 8) 1576 | -9/Materials | Lost 3 parts (2n1u) 1629 | -9/Materials | Discovered new exit (range 9) 1740 | -9/Materials | Entered another Materials area 1740 | -8/Materials | Evolved 2 slots: Power x1, Propulsion x1 1947 | -8/Materials | Build established: Scavenger-Mutant 2048 | -8/Materials | Lost 5 parts (2n2u1w) 2141 | -8/Materials | Lost 5 parts (1p1n1u2w) 2236 | -8/Materials | Core integrity fell below 50% 2471 | -8/Materials | Build established: Mutant 2512 | -8/Materials | Self-destructed Last Messages --------------- 02325_ Acquired 13 matter. 02336_ Dropped Com. Wheel. 02336_ K-01 Serf collects debris. 02361_ K-01 Serf cleans the Terminal. 02365_ R-06 Scavenger collects Tractor Beam. 02369_ R-06 Scavenger collects Carbon-fiber Leg. 02415_ Acquired Imp. Power Shielding. 02499_ Triggered Blade Trap. 02499_ Massive razor-sharp blades shoot up from within the floor. 02499_ Lgt. Nuclear Core severed. 02499_ Lgt. Treads severed. 02499_ Hrd. Light Armor Plating severed. 02502_ U-05 Engineer lays Concrete. 02504_ Acquired Lgt. Treads. 02508_ Acquired Lgt. Nuclear Core. 02509_ Triggered Blade Trap. 02509_ Massive razor-sharp blades shoot up from within the floor. 02509_ Assault Cannon severed. Map ----- +----------------------------------------------------+ | ?????????????????????????????????????????????????? | | ?????????????????????????????????????????????????? | | ?????????????????????????????????????????????????? | | ?????????????????????????????????????????????????? | | ?????????????????????????????????????????????????? | | ?????????????????????????????????????????????????? | | ?????????????????????????????????????????????????? | | ?????????????????????????????????????????????????? | | ?????????????????????????????????????????????????? | | ????????????????????????????????####?????????????? | | ????????########???????????????? #?????????????? | | ????????# | #???????????????? ?????????????? | | ????????# !!!#???????????????? #????#????????? | | ????????# ! !!!#???????????????? ! ???? #????????? | | ????????# !!!#???????????????? ??? #????????? | | ????????# #???????????????? ??? ##???????? | | ????????# ! !#????????????####/### #???????? | | ????????####+###????????????# #???????? | | ???????????# #??????????????# #???????? | | ???????????# #??????????????# #???????? | | ???????????# #??????????????# #### #???????? | | ##########?# #??????????????# #????????????????? | | # ### ###????????????# #????????????????? | | # """ # ############## #????????????????? | | # """ # ! ^^ w #????????????????? | | # """ + ! u@ #????????????????? | | # # a ^ #????????????????? | | # """ # k##########+#######????????????????? | | # "Y ## ########### #?????????????????? | | # """ ## # # #?????????????????? | | # ## # # #?????????????????? | | ###+####### / ""T"" + [[ #?????????????????? | | # #?????# # """"" # [[ #?????????????????? | | # #?????# ########/## ][ #?????????????????? | | # #????## ##?????# #########?????????????????? | | =# ###### #????? ?##??????????????????????? | | = # ##### [ ???????????????????? | | +% T% T ?????????????????????? | | # % ##### ???????????????????? | | !### ####! % #???? ###?????????????????????? | | !!#?# #?####+#####?###+###???????????????????????? | | #?# #?# #???????????????????????????????? | | #?# #?# #???????????????????????????????? | | ###?# #?# #???????????????????????????????? | | ???## ### #???????????????????????????????? | | ???# ## #???????????????????????????????? | | ???# + #???????????????????????????????? | | ???#= ## * #???????????????????????????????? | | ?####+### [ #???????????????????????????????? | | ?# # #???????????????????????????????? | +----------------------------------------------------+ Best States ------------- Heat Dissipation 31 Energy Generation 23 Energy Capacity 265 Matter Stores 300 Matter Capacity 300 Sight Range 16 Terrain Scan Density 10 Armor Coverage 300 Core Shielding 20 Power Shielding 66 Evasion (%) 55 Recoil Reduction 2 Offensive Hacking 10 Item Schematics ----------------- None Robot Schematics ------------------ None Fabricated ------------ Nothing Alien Tech Used ----------------- None Achievements -------------- More Dakka Please Oops Challenges ------------ None Game ------ Seed WarpSuperchargedCompactor Manual? 0 Play Time 00:32:53 Cumulative 4.5 hours Start 2024.11.20 @ 01:30:32 End 2024.11.20 @ 02:02:15 Sessions 1 Manual Loads 0 Difficulty Rogue Special Mode None Game No. 7 Rogue 7 Adventurer 0 Explorer 0 Win Type - Total 0 Types 0/0/0/0/0/0/0/0/0 Lore% 0 Gallery% 10 Achievement% 10 Wizard Run 0 Options --------- Layout 1 ASCII 0 Keyboard 0 Movement Mouse Keybinds 0 Fullscreen 1 Font 16/SmallcapsGlow Map View 55x38 Zoom Use 0% Tactical HUD 1 Map Filters NONE Filters NONE Steam 1 RUN: 13e824f2-aa40-42c4-8ada-7141bc32ea3c